fUSD/lending_fUSD_20260528
["ID","MTS","AMOUNT","RATE_DAILY","PERIOD"]
[423201244,1779921039000,-150.0,0.00014487,2]
[423201250,1779921039000,-300.0,0.000147,5]
[423201230,1779921039000,-705.0,0.00014123,2]
[423201231,1779921039000,-31197.9754425,0.00014146,2]
[423201233,1779921039000,-150.0,0.00014237,2]
[423201232,1779921039000,-266.07103257,0.0001421,7]
[423201234,1779921039000,-150.0,0.00014237,2]
[423201235,1779921039000,-166.66,0.00014247,2]
[423201236,1779921039000,-1200.0,0.000143,5]
[423201275,1779921039000,-500.0,0.00014999,2]
[423201238,1779921039000,-166.66,0.00014384,2]
[423201245,1779921039000,-300.0,0.000145,5]
[423201239,1779921039000,-10464.04195923,0.0001439,2]
[423201241,1779921039000,-1238.51090496,0.000144,2]
[423201243,1779921039000,-24320.56204745,0.00014423,2]
[423201240,1779921039000,-5681.95212672,0.000144,4]
[423201242,1779921039000,-1500.0,0.000144,5]
[423201237,1779921039000,-500.0,0.00014346,2]
[423201246,1779921039000,-31197.9754425,0.00014523,2]
[423201247,1779921039000,-161.32731532,0.00014589,30]
[423201248,1779921039000,-300.0,0.000146,5]
[423201249,1779921039000,-500.0,0.0001462,2]
[423201272,1779921039000,-500.0,0.00014999,2]
[423201253,1779921039000,-151.96613771,0.0001489,2]
[423201282,1779921039000,-530.08819485,0.00014999,2]
[423201299,1779921039000,-1080.25,0.00014999,2]
[423201304,1779921039000,-1080.25,0.00014999,2]
[423201305,1779921039000,-1080.25,0.00014999,2]
[423201308,1779921039000,-1080.25,0.00014999,2]
[423201307,1779921039000,-1080.25,0.00014999,2]
[423201306,1779921039000,-1080.25,0.00014999,2]
[423201302,1779921039000,-1080.25,0.00014999,2]
[423201300,1779921039000,-1080.25,0.00014999,2]
[423201301,1779921039000,-1080.25,0.00014999,2]
[423201298,1779921039000,-1080.25,0.00014999,2]
[423201309,1779921039000,-1080.25,0.00014999,2]
[423201303,1779921039000,-1080.25,0.00014999,2]
[423201311,1779921039000,-1080.25,0.00014999,2]
[423201312,1779921039000,-1080.25,0.00014999,2]
[423201313,1779921039000,-1080.25,0.00014999,2]
[423201315,1779921039000,-14882374.52564446,0.00015,2]
[423201314,1779921039000,-1080.3485681,0.00014999,2]
[423201316,1779921039000,-360.04316182,0.00015,2]
[423201317,1779921039000,-4069996.78567097,0.00015,2]
[423201273,1779921039000,-500.0,0.00014999,2]
[423201310,1779921039000,-1080.25,0.00014999,2]
[423201295,1779921039000,-1080.25,0.00014999,2]
[423201268,1779921039000,-500.0,0.00014999,2]
[423201294,1779921039000,-164.03595357,0.00014999,2]
[423201276,1779921039000,-500.0,0.00014999,2]
[423201281,1779921039000,-500.0,0.00014999,2]
[423201277,1779921039000,-500.0,0.00014999,2]
[423201279,1779921039000,-500.0,0.00014999,2]
[423201280,1779921039000,-500.0,0.00014999,2]
[423201278,1779921039000,-500.0,0.00014999,2]
[423201283,1779921039000,-500.0,0.00014999,2]
[423201284,1779921039000,-500.0,0.00014999,2]
[423201286,1779921039000,-500.0,0.00014999,2]
[423201292,1779921039000,-325.03034277,0.00014999,2]
[423201296,1779921039000,-1080.25,0.00014999,2]
[423201297,1779921039000,-1080.25,0.00014999,2]
[423201289,1779921039000,-500.0,0.00014999,2]
[423201291,1779921039000,-500.0,0.00014999,2]
[423201293,1779921039000,-500.0,0.00014999,2]
[423201274,1779921039000,-500.0,0.00014999,2]
[423201290,1779921039000,-500.0,0.00014999,2]
[423201288,1779921039000,-500.0,0.00014999,2]
[423201285,1779921039000,-500.0,0.00014999,2]
[423201287,1779921039000,-500.0,0.00014999,2]
[423201402,1779921042000,-5959.93045173,9.703e-05,2]
[423201415,1779921043000,-20345.0,9.703e-05,2]
[423201403,1779921043000,-715.06987904,9.703e-05,2]
[423201414,1779921043000,-260.10175785,9.703e-05,2]
[423201441,1779921045000,-463.11319434,9.703e-05,2]
[423201442,1779921045000,-835.5016347,9.703e-05,2]
[423201445,1779921046000,-11167.14449051,9.703e-05,2]
[423201444,1779921046000,-340.379185,9.703e-05,2]
[423201443,1779921046000,-745.65434932,9.703e-05,2]
[423201477,1779921058000,658.25,0.00027344,120]
[423201476,1779921058000,658.25,0.00025066,120]
[423201480,1779921245000,312.36,5.814e-05,2]
[423201481,1779921245000,312.36,6.12e-05,2]
[423201482,1779921245000,312.36,6.426e-05,2]
[423201487,1779921246000,312.36,7.956e-05,2]
[423201486,1779921246000,312.36,7.65e-05,2]
[423201485,1779921246000,312.36,7.344e-05,2]
[423201484,1779921246000,312.36,7.038e-05,2]
[423201483,1779921246000,312.36,6.732e-05,2]
[423201490,1779921247000,312.36,8.874e-05,2]
[423201489,1779921247000,312.36,8.568e-05,2]
[423201488,1779921247000,312.36,8.262e-05,2]
[423201492,1779921348000,1837.63569564,8.9e-05,2]
[423201491,1779921348000,162.36430436,8.9e-05,2]
[423201494,1779921349000,1200.0,8.38e-05,2]
[423201493,1779921349000,800.0,8.89e-05,2]
[423201499,1779921654000,160.14016196,8.946e-05,2]
[423201498,1779921654000,760.56931904,8.946e-05,2]
[423201500,1779921678000,1000.0,8.592e-05,2]
[423201502,1779921746000,2010.0,8.602e-05,2]
[423201503,1779921796000,-150.0,8.992e-05,2]
[423201504,1779921796000,-250.0,9.039e-05,2]
[423201506,1779921796000,-250.0,9.122e-05,2]
[423201505,1779921796000,-1249.4394511,9.039e-05,2]
[423201507,1779921796000,-150.0,9.128e-05,2]
[423201508,1779921796000,-177.91431883,9.128e-05,2]
[423201510,1779921796000,-150.0,9.219e-05,2]
[423201509,1779921796000,-312.36,9.18e-05,2]
[423201521,1779921797000,-500.0,9.314e-05,2]
[423201520,1779921797000,-260.18685375,9.314e-05,2]
[423201518,1779921797000,-323.05761165,9.314e-05,2]
[423201519,1779921797000,-500.0,9.314e-05,2]
[423201517,1779921797000,-500.0,9.314e-05,2]
[423201511,1779921797000,-150.0,9.309e-05,2]
[423201514,1779921797000,-150.0,9.314e-05,2]
[423201516,1779921797000,-500.0,9.314e-05,2]
[423201513,1779921797000,-160.0,9.313e-05,2]
[423201512,1779921797000,-300.0,9.313e-05,2]
[423201522,1779921797000,-500.0,9.314e-05,2]
[423201515,1779921797000,-237.0,9.314e-05,2]
[423201524,1779921797000,-500.0,9.314e-05,2]
[423201529,1779921797000,-415.53977994,9.314e-05,2]
[423201525,1779921797000,-500.0,9.314e-05,2]
[423201527,1779921797000,-500.0,9.314e-05,2]
[423201526,1779921797000,-500.0,9.314e-05,2]
[423201528,1779921797000,-525.0,9.314e-05,2]
[423201530,1779921797000,-500.0,9.314e-05,2]
[423201531,1779921797000,-500.0,9.314e-05,2]
[423201532,1779921797000,-500.0,9.314e-05,2]
[423201533,1779921797000,-500.0,9.314e-05,2]
[423201534,1779921797000,-500.0,9.314e-05,2]
[423201535,1779921797000,-500.0,9.314e-05,2]
[423201537,1779921797000,-500.0,9.314e-05,2]
[423201538,1779921797000,-189.50198473,9.314e-05,2]
[423201523,1779921797000,-500.0,9.314e-05,2]
[423201536,1779921797000,-500.0,9.314e-05,2]
[423201539,1779921932000,-398.45954066,9.176e-05,2]
[423201540,1779921932000,-150.0,9.267e-05,2]
[423201542,1779921932000,-300.0,9.312e-05,2]
[423201543,1779921932000,-150.0,9.312e-05,2]
[423201544,1779921932000,-207.0,9.312e-05,2]
[423201545,1779921932000,-208.76466943,9.313e-05,2]
[423201541,1779921932000,-1200.0,9.312e-05,2]
[423201546,1779921947000,178.45201904,9.039e-05,7]
[423201548,1779921955000,-160.0,9.312e-05,2]
[423201547,1779921955000,-208.97895572,9.084e-05,2]
[423201549,1779921955000,-16.23533057,9.313e-05,2]
[423201550,1779921955000,-500.0,9.313e-05,2]
[423201552,1779921955000,-500.0,9.313e-05,2]
[423201553,1779921955000,-473.52618606,9.313e-05,2]
[423201551,1779921955000,-212.83775333,9.313e-05,2]
[423201554,1779921994000,-267.83095593,9.312e-05,2]
[423201556,1779922015000,704.72485272,4.892e-05,2]
[423201557,1779922015000,18.61514728,4.892e-05,2]
[423201555,1779922015000,723.34,4.647e-05,2]
[423201558,1779922016000,723.34,5.136e-05,2]
[423201559,1779922016000,723.34,5.381e-05,2]
[423201562,1779922016000,723.34,6.114e-05,2]
[423201561,1779922016000,723.34,5.87e-05,2]
[423201560,1779922016000,723.34,5.625e-05,2]
[423201568,1779922017000,723.34,7.337e-05,2]
[423201567,1779922017000,723.34,7.093e-05,2]
[423201566,1779922017000,723.34,6.848e-05,2]
[423201565,1779922017000,483.7901326,6.604e-05,2]
[423201564,1779922017000,239.5498674,6.604e-05,2]
[423201563,1779922017000,723.34,6.359e-05,2]
[423201572,1779922018000,225.62511792,8.071e-05,2]
[423201571,1779922018000,497.71488208,8.071e-05,2]
[423201570,1779922018000,723.34,7.827e-05,2]
[423201569,1779922018000,723.34,7.582e-05,2]
[423201573,1779922019000,723.34,8.316e-05,2]
[423201574,1779922019000,723.34,8.56e-05,2]
[423201575,1779922019000,723.34,8.805e-05,2]
[423201577,1779922036000,-82.42962972,9.294e-05,2]
[423201576,1779922036000,-723.34,9.049e-05,2]
[423201581,1779922037000,-268.41813499,9.312e-05,2]
[423201580,1779922037000,-177.91431883,9.312e-05,2]
[423201578,1779922037000,-640.91037028,9.294e-05,2]
[423201579,1779922037000,-300.0,9.311e-05,2]
[423201584,1779922045000,-231.58186501,9.312e-05,2]
[423201585,1779922045000,-169.93177983,9.312e-05,2]
[423201583,1779922045000,-150.0,9.23e-05,2]
[423201582,1779922045000,-150.0,9.139e-05,2]
[423201586,1779922148000,-151.0,9.1e-05,2]
[423201587,1779922148000,-151.0,9.2e-05,2]
[423201588,1779922148000,-45.0914118,9.31e-05,2]
[423201597,1779922149000,-500.0,9.311e-05,2]
[423201603,1779922149000,-500.0,9.311e-05,2]
[423201601,1779922149000,-500.0,9.311e-05,2]
[423201602,1779922149000,-500.0,9.311e-05,2]
[423201600,1779922149000,-500.0,9.311e-05,2]
[423201599,1779922149000,-500.0,9.311e-05,2]
[423201598,1779922149000,-500.0,9.311e-05,2]
[423201591,1779922149000,-500.0,9.311e-05,2]
[423201595,1779922149000,-500.0,9.311e-05,2]
[423201593,1779922149000,-500.0,9.311e-05,2]
[423201594,1779922149000,-500.0,9.311e-05,2]
[423201592,1779922149000,-500.0,9.311e-05,2]
[423201590,1779922149000,-150.0,9.311e-05,2]
[423201604,1779922149000,-500.0,9.311e-05,2]
[423201589,1779922149000,-254.9085882,9.31e-05,2]
[423201596,1779922149000,-500.0,9.311e-05,2]
[423201606,1779922149000,-500.0,9.311e-05,2]
[423201613,1779922149000,-500.0,9.311e-05,2]
[423201607,1779922149000,-500.0,9.311e-05,2]
[423201605,1779922149000,-500.0,9.311e-05,2]
[423201621,1779922149000,-500.0,9.311e-05,2]
[423201623,1779922149000,-500.0,9.311e-05,2]
[423201622,1779922149000,-500.0,9.311e-05,2]
[423201620,1779922149000,-500.0,9.311e-05,2]
[423201617,1779922149000,-500.0,9.311e-05,2]
[423201618,1779922149000,-500.0,9.311e-05,2]
[423201616,1779922149000,-500.0,9.311e-05,2]
[423201619,1779922149000,-500.0,9.311e-05,2]
[423201615,1779922149000,-500.0,9.311e-05,2]
[423201624,1779922149000,-500.0,9.311e-05,2]
[423201611,1779922149000,-500.0,9.311e-05,2]
[423201612,1779922149000,-500.0,9.311e-05,2]
[423201609,1779922149000,-500.0,9.311e-05,2]
[423201610,1779922149000,-500.0,9.311e-05,2]
[423201608,1779922149000,-500.0,9.311e-05,2]
[423201614,1779922149000,-500.0,9.311e-05,2]
[423201627,1779922150000,-500.0,9.311e-05,2]
[423201625,1779922150000,-500.0,9.311e-05,2]
[423201628,1779922150000,-500.0,9.311e-05,2]
[423201626,1779922150000,-500.0,9.311e-05,2]
[423201630,1779922150000,-500.0,9.311e-05,2]
[423201633,1779922150000,-375.2699718,9.311e-05,2]
[423201632,1779922150000,-500.0,9.311e-05,2]
[423201631,1779922150000,-500.0,9.311e-05,2]
[423201629,1779922150000,-500.0,9.311e-05,2]
[423201635,1779922155000,-500.0,9.311e-05,2]
[423201636,1779922155000,-500.0,9.311e-05,2]
[423201634,1779922155000,-124.7300282,9.311e-05,2]
[423201638,1779922155000,-500.0,9.311e-05,2]
[423201639,1779922155000,-500.0,9.311e-05,2]
[423201640,1779922155000,-245.3094378,9.311e-05,2]
[423201637,1779922155000,-500.0,9.311e-05,2]
[423201658,1779922156000,-500.0,9.311e-05,2]
[423201655,1779922156000,-500.0,9.311e-05,2]
[423201654,1779922156000,-500.0,9.311e-05,2]
[423201652,1779922156000,-500.0,9.311e-05,2]
[423201653,1779922156000,-500.0,9.311e-05,2]
[423201651,1779922156000,-500.0,9.311e-05,2]
[423201648,1779922156000,-505.82394711,9.311e-05,2]
[423201643,1779922156000,-500.0,9.311e-05,2]
[423201649,1779922156000,-500.0,9.311e-05,2]
[423201647,1779922156000,-500.0,9.311e-05,2]
[423201644,1779922156000,-500.0,9.311e-05,2]
[423201646,1779922156000,-500.0,9.311e-05,2]
[423201645,1779922156000,-500.0,9.311e-05,2]
[423201642,1779922156000,-500.0,9.311e-05,2]
[423201641,1779922156000,-254.6905622,9.311e-05,2]
[423201650,1779922156000,-500.0,9.311e-05,2]
[423201657,1779922156000,-500.0,9.311e-05,2]
[423201666,1779922156000,-500.0,9.311e-05,2]
[423201659,1779922156000,-500.0,9.311e-05,2]
[423201656,1779922156000,-500.0,9.311e-05,2]
[423201674,1779922156000,-200.0,9.315e-05,2]
[423201673,1779922156000,-500.0,9.313e-05,2]
[423201671,1779922156000,-500.0,9.311e-05,2]
[423201672,1779922156000,-160.0,9.312e-05,2]
[423201670,1779922156000,-500.0,9.311e-05,2]
[423201668,1779922156000,-650.0,9.311e-05,2]
[423201675,1779922156000,-867.37661069,9.316e-05,2]
[423201667,1779922156000,-500.0,9.311e-05,2]
[423201664,1779922156000,-500.0,9.311e-05,2]
[423201665,1779922156000,-500.0,9.311e-05,2]
[423201663,1779922156000,-500.0,9.311e-05,2]
[423201662,1779922156000,-500.0,9.311e-05,2]
[423201661,1779922156000,-500.0,9.311e-05,2]
[423201660,1779922156000,-500.0,9.311e-05,2]
[423201669,1779922156000,-500.0,9.311e-05,2]
[423201676,1779922157000,-994.526736,9.316e-05,2]
[423201698,1779922232000,-201.75,9.396e-05,2]
[423201696,1779922232000,-328.78,9.379e-05,2]
[423201694,1779922232000,-208.97895572,9.352e-05,2]
[423201693,1779922232000,-1897.74,9.35e-05,2]
[423201692,1779922232000,-150.0,9.317e-05,2]
[423201691,1779922232000,-299.99,9.317e-05,2]
[423201688,1779922232000,-9999.99,9.316e-05,2]
[423201689,1779922232000,-300.0,9.316e-05,2]
[423201687,1779922232000,-172.77492999,9.315e-05,2]
[423201686,1779922232000,-115.49801527,9.315e-05,2]
[423201680,1779922232000,-911.72705474,9.315e-05,2]
[423201699,1779922232000,-292.0,9.407e-05,2]
[423201690,1779922232000,-999.99,9.317e-05,2]
[423201695,1779922232000,-150.99,9.357e-05,2]
[423201697,1779922232000,-174.4,9.396e-05,2]
[423201701,1779922232000,-1323.59074994,9.471e-05,2]
[423201700,1779922232000,-470.16,9.471e-05,2]
[423201714,1779922232000,-1051.54508863,9.703e-05,2]
[423201713,1779922232000,-20740.12158436,9.703e-05,2]
[423201712,1779922232000,-1254.41808677,9.703e-05,2]
[423201711,1779922232000,-14870.09297243,9.703e-05,2]
[423201710,1779922232000,-2000.0,9.598e-05,2]
[423201708,1779922232000,-5470.0,9.558e-05,2]
[423201709,1779922232000,-227.28454168,9.561e-05,2]
[423201702,1779922232000,-8676.39925006,9.471e-05,2]
[423201705,1779922232000,-15106.71,9.506e-05,2]
[423201707,1779922232000,-7023.3276662,9.555e-05,2]
[423201704,1779922232000,-940.18848869,9.505e-05,2]
[423201706,1779922232000,-164.19,9.55e-05,2]
[423201703,1779922232000,-312.36,9.486e-05,2]
[423201755,1779922238000,-174.4,0.00011275,2]
[423201754,1779922238000,-587.0,0.00011272,2]
[423201753,1779922238000,-2351.0,0.00011271,2]
[423201752,1779922238000,-433.0,0.00011266,2]
[423201750,1779922238000,-500.0,0.00011258,2]
[423201748,1779922238000,-1116.23,0.0001103,2]
[423201749,1779922238000,-164.19,0.00011126,2]
[423201747,1779922238000,-312.36,0.00011016,2]
[423201759,1779922238000,-312.36,0.00011628,2]
[423201719,1779922238000,-185.91,9.724e-05,2]
[423201760,1779922238000,-166.66,0.00011702,2]
[423201766,1779922238000,-174.4,0.00012215,2]
[423201758,1779922238000,-500.0,0.00011532,2]
[423201757,1779922238000,-166.66,0.0001134,2]
[423201761,1779922238000,-500.0,0.00011806,2]
[423201763,1779922238000,-2000.0,0.00011997,2]
[423201764,1779922238000,-166.66,0.00012065,2]
[423201765,1779922238000,-500.0,0.0001208,2]
[423201768,1779922238000,-250.0,0.0001231,2]
[423201767,1779922238000,-257.5,0.00012275,2]
[423201769,1779922238000,-391.98,0.00012329,2]
[423201770,1779922238000,-500.0,0.00012354,2]
[423201745,1779922238000,-166.66,0.00010977,2]
[423201756,1779922238000,-312.36,0.00011322,2]
[423201746,1779922238000,-500.0,0.00010984,2]
[423201721,1779922238000,-433.2,9.868e-05,2]
[423201742,1779922238000,-2000.0,0.00010797,2]
[423201718,1779922238000,-28448.36571642,9.703e-05,2]
[423201720,1779922238000,-312.36,9.792e-05,2]
[423201723,1779922238000,-670.41,9.945e-05,2]
[423201722,1779922238000,-10607.39,9.885e-05,2]
[423201724,1779922238000,-250.0,9.968e-05,2]
[423201726,1779922238000,-1116.23,0.00010027,2]
[423201725,1779922238000,-1852.42,0.00010022,2]
[423201727,1779922238000,-366.16,0.00010096,2]
[423201729,1779922238000,-500.0,0.0001021,2]
[423201730,1779922238000,-255.0,0.00010242,2]
[423201731,1779922238000,-250.0,0.00010243,2]
[423201728,1779922238000,-312.36,0.00010098,2]
[423201733,1779922238000,-1680.0,0.00010247,2]
[423201735,1779922238000,-1116.23,0.00010278,2]
[423201732,1779922238000,-250.0,0.00010247,2]
[423201738,1779922238000,-1116.23,0.00010529,2]
[423201771,1779922238000,-3292.0,0.00012398,2]
[423201736,1779922238000,-174.4,0.00010336,2]
[423201737,1779922238000,-312.36,0.00010404,2]
[423201739,1779922238000,-312.36,0.0001071,2]
[423201741,1779922238000,-1116.23,0.00010779,2]
[423201740,1779922238000,-500.0,0.0001071,2]
[423201743,1779922238000,-150.0,0.00010959,2]
[423201744,1779922238000,-150.0,0.00010959,2]
[423201773,1779922238000,-166.66,0.00012427,2]
[423201734,1779922238000,-420.0,0.00010248,2]
[423201775,1779922238000,-5756.97311514,0.00012689,2]
[423201821,1779922238000,-150.0,0.00013606,2]
[423201833,1779922238000,-150.0,0.00013645,2]
[423201823,1779922238000,-5756.9731151,0.00013637,2]
[423201829,1779922238000,-257.5,0.00013639,2]
[423201825,1779922238000,-150.0,0.00013638,2]
[423201831,1779922238000,-278.0,0.0001364,2]
[423201836,1779922238000,-150.0,0.00013685,2]
[423201840,1779922238000,-500.0,0.00013698,2]
[423201838,1779922238000,-1790.37761375,0.00013698,2]
[423201842,1779922238000,-500.0,0.00013698,2]
[423201844,1779922238000,-500.0,0.00013698,2]
[423201827,1779922238000,-3193.0,0.00013638,2]
[423201846,1779922238000,-399.20274954,0.00013698,2]
[423201848,1779922238000,-500.0,0.00013698,2]
[423201847,1779922238000,-500.0,0.00013698,2]
[423201850,1779922238000,-396.0096558,0.00013698,2]
[423201851,1779922238000,-500.0,0.00013698,2]
[423201853,1779922238000,-500.0,0.00013698,2]
[423201855,1779922238000,-500.55356885,0.00013698,2]
[423201852,1779922238000,-500.0,0.00013698,2]
[423201856,1779922238000,-500.0,0.00013698,2]
[423201854,1779922238000,-502.4828642,0.00013698,2]
[423201857,1779922238000,-500.0,0.00013698,2]
[423201772,1779922238000,-823.0,0.000124,2]
[423201849,1779922238000,-500.0,0.00013698,2]
[423201814,1779922238000,-150.0,0.00013527,2]
[423201751,1779922238000,-3190.01,0.0001126,2]
[423201818,1779922238000,-16718.22081224,0.00013598,2]
[423201816,1779922238000,-150.0,0.00013567,2]
[423201777,1779922238000,-236.79027631,0.000128,2]
[423201776,1779922238000,-166.66,0.00012789,2]
[423201778,1779922238000,-311.812576,0.00012879,2]
[423201780,1779922238000,-229.82585641,0.00012904,2]
[423201779,1779922238000,-200.97852688,0.00012902,2]
[423201781,1779922238000,-257.5,0.00012957,2]
[423201783,1779922238000,-193.56153376,0.00012995,2]
[423201782,1779922238000,-438.35994411,0.00012995,2]
[423201785,1779922238000,-300.0,0.00013006,18]
[423201784,1779922238000,-5756.9731151,0.00013005,2]
[423201786,1779922238000,-174.4,0.00013155,2]
[423201774,1779922238000,-500.0,0.00012628,2]
[423201788,1779922238000,-2000.0,0.00013197,2]
[423201812,1779922238000,-150.0,0.00013488,2]
[423201810,1779922238000,-150.0,0.00013488,2]
[423201808,1779922238000,-150.0,0.00013488,2]
[423201790,1779922238000,-5756.9731151,0.00013321,2]
[423201798,1779922238000,-150.0,0.00013488,2]
[423201800,1779922238000,-150.0,0.00013488,2]
[423201804,1779922238000,-150.0,0.00013488,2]
[423201796,1779922238000,-150.0,0.00013488,2]
[423201802,1779922238000,-150.0,0.00013488,2]
[423201794,1779922238000,-150.0,0.00013488,2]
[423201792,1779922238000,-150.0,0.00013488,2]
[423201806,1779922238000,-150.0,0.00013488,2]
[423201899,1779922239000,-500.0,0.00013698,2]
[423201895,1779922239000,-500.0,0.00013698,2]
[423201890,1779922239000,-718.07,0.00013698,2]
[423201894,1779922239000,-651.5,0.00013698,2]
[423201886,1779922239000,-500.0,0.00013698,2]
[423201889,1779922239000,-718.07,0.00013698,2]
[423201893,1779922239000,-651.5,0.00013698,2]
[423201891,1779922239000,-456.79764672,0.00013698,2]
[423201888,1779922239000,-718.07,0.00013698,2]
[423201896,1779922239000,-500.0,0.00013698,2]
[423201892,1779922239000,-651.5,0.00013698,2]
[423201897,1779922239000,-500.0,0.00013698,2]
[423201905,1779922239000,-500.0,0.00013698,2]
[423201907,1779922239000,-500.0,0.00013698,2]
[423201902,1779922239000,-500.0,0.00013698,2]
[423201908,1779922239000,-533.24,0.00013698,2]
[423201904,1779922239000,-500.0,0.00013698,2]
[423201906,1779922239000,-500.0,0.00013698,2]
[423201900,1779922239000,-500.0,0.00013698,2]
[423201903,1779922239000,-500.0,0.00013698,2]
[423201909,1779922239000,-233.86857724,0.00013698,2]
[423201911,1779922239000,-500.0,0.00013698,2]
[423201910,1779922239000,-1080.25,0.00013698,2]
[423201919,1779922239000,-150.0,0.00013702,2]
[423201885,1779922239000,-500.0,0.00013698,2]
[423201901,1779922239000,-500.0,0.00013698,2]
[423201887,1779922239000,-500.0,0.00013698,2]
[423201875,1779922239000,-2047.04,0.00013698,2]
[423201883,1779922239000,-520.92,0.00013698,2]
[423201858,1779922239000,-500.0,0.00013698,2]
[423201861,1779922239000,-500.0,0.00013698,2]
[423201863,1779922239000,-500.0,0.00013698,2]
[423201859,1779922239000,-500.0,0.00013698,2]
[423201860,1779922239000,-500.0,0.00013698,2]
[423201864,1779922239000,-500.0,0.00013698,2]
[423201862,1779922239000,-500.0,0.00013698,2]
[423201865,1779922239000,-500.0,0.00013698,2]
[423201867,1779922239000,-539.62353422,0.00013698,2]
[423201868,1779922239000,-500.0,0.00013698,2]
[423201866,1779922239000,-500.0,0.00013698,2]
[423201870,1779922239000,-500.0,0.00013698,2]
[423201874,1779922239000,-500.0,0.00013698,2]
[423201869,1779922239000,-500.0,0.00013698,2]
[423201920,1779922239000,-150.0,0.00013702,2]
[423201876,1779922239000,-2047.04,0.00013698,2]
[423201871,1779922239000,-500.0,0.00013698,2]
[423201873,1779922239000,-500.0,0.00013698,2]
[423201872,1779922239000,-500.0,0.00013698,2]
[423201878,1779922239000,-500.0,0.00013698,2]
[423201877,1779922239000,-2047.04,0.00013698,2]
[423201880,1779922239000,-500.0,0.00013698,2]
[423201879,1779922239000,-500.0,0.00013698,2]
[423201882,1779922239000,-520.92,0.00013698,2]
[423201881,1779922239000,-520.92,0.00013698,2]
[423201884,1779922239000,-500.0,0.00013698,2]
[423201912,1779922239000,-233.52770708,0.00013698,2]
[423201898,1779922239000,-500.0,0.00013698,2]
[423201917,1779922239000,-7027.88,0.00013699,2]
[423201947,1779922239000,-150.0,0.00013987,2]
[423201948,1779922239000,-150.0,0.00013987,2]
[423201950,1779922239000,-500.0,0.00013989,2]
[423201951,1779922239000,-500.0,0.00013989,2]
[423201949,1779922239000,-195.84112978,0.00013989,2]
[423201952,1779922239000,-500.0,0.00013989,2]
[423201956,1779922239000,-520.92,0.00013989,2]
[423201954,1779922239000,-2047.04,0.00013989,2]
[423201953,1779922239000,-500.0,0.00013989,2]
[423201955,1779922239000,-500.0,0.00013989,2]
[423201959,1779922239000,-651.5,0.00013989,2]
[423201958,1779922239000,-718.07,0.00013989,2]
[423201941,1779922239000,-150.0,0.00013916,2]
[423201957,1779922239000,-500.0,0.00013989,2]
[423201961,1779922239000,-500.0,0.00013989,2]
[423201963,1779922239000,-10395.55656977,0.0001399,2]
[423201964,1779922239000,-250.0,0.00014,2]
[423201966,1779922239000,-16718.22081223,0.00014032,2]
[423201967,1779922239000,-150.0,0.0001404,2]
[423201965,1779922239000,-150.0,0.00014,2]
[423201968,1779922239000,-150.0,0.00014079,2]
[423201970,1779922239000,-174.4,0.00014094,2]
[423201969,1779922239000,-150.0,0.00014087,2]
[423201971,1779922239000,-300.0,0.000141,5]
[423201972,1779922239000,-166.66,0.0001411,2]
[423201913,1779922239000,-166.66,0.00013699,2]
[423201962,1779922239000,-500.0,0.00013989,2]
[423201940,1779922239000,-150.0,0.00013916,2]
[423201960,1779922239000,-500.0,0.00013989,2]
[423201942,1779922239000,-150.0,0.00013921,2]
[423201915,1779922239000,-741.86,0.00013699,2]